bitfinex/quotes_ETHUSD_20260302
["timestamp","ask_amount","ask_price","bid_price","bid_amount"]
[1772472536181,1.70962371,2056.8,2055.5,0.49900366]
[1772472536587,0.49413767,2056.8,2055.5,0.49900366]
[1772472536906,0.002,2056.8,2055.9,0.49900366]
[1772472537104,1.21748641,2056.8,2055.9,0.49900366]
[1772472537403,1.21749186,2056.8,2055.9,0.49900366]
[1772472537585,0.002,2056.8,2055.9,0.49900366]
[1772472538195,0.002,2056.8,2056.0,1.2159533]
[1772472538709,0.002,2056.8,2056.0,1.71495696]
[1772472538907,0.002,2056.6,2056.0,1.71495696]
[1772472540198,0.002,2056.6,2056.1,0.49900366]
[1772472540403,0.002,2056.6,2056.2,1.21583503]
[1772472540802,0.002,2056.6,2056.2,1.71483869]
[1772472541315,0.002,2056.6,2055.8,1.71507526]
[1772472541512,0.002,2056.6,2055.9,0.49900366]
[1772472542719,0.002,2056.6,2056.0,1.71495696]
[1772472543433,0.002,2056.8,2056.0,1.71495696]
[1772472543434,0.002,2056.8,2056.1,0.49900366]
[1772472543582,0.002,2056.8,2056.2,0.49900366]
[1772472545059,0.002,2057.3,2056.4,0.49900366]
[1772472545638,0.002,2057.3,2056.7,0.49900366]
[1772472545852,0.002,2057.3,2056.9,0.49900366]
[1772472546503,0.002,2057.8,2057.3,0.49900366]
[1772472546833,0.002,2057.8,2057.5,1.71407048]
[1772472547029,0.002,2057.8,2057.4,1.21508869]
[1772472547258,0.002,2057.8,2057.4,1.71409235]
[1772472547564,0.002,2057.8,2056.9,1.45200366]
[1772472549265,0.002,2057.8,2057.0,1.21536217]
[1772472549560,0.002,2057.8,2056.8,1.21543947]
[1772472550455,0.002,2057.8,2056.8,1.71444313]
[1772472550844,0.002,2057.8,2056.8,2.66644313]
[1772472551679,0.49213767,2057.6,2056.4,1.45100366]
[1772472551879,0.49413767,2057.6,2056.4,1.21671137]
[1772472552456,0.49413767,2057.6,2056.4,0.001]
[1772472552657,0.49413767,2057.6,2056.4,1.21670948]
[1772472553085,0.49413767,2057.6,2056.4,1.21670258]
[1772472553785,0.49413767,2057.6,2056.4,0.001]
[1772472553786,1.70720449,2057.5,2056.4,0.001]
[1772472554085,1.70720449,2057.5,2056.4,0.50000366]
[1772472554255,0.49213767,2057.4,2056.4,0.50000366]
[1772472555590,0.49213767,2057.4,2056.4,1.71570864]
[1772472555591,1.21518495,2057.3,2056.4,1.71570864]
[1772472556589,1.69388308,2057.3,2056.4,1.21670498]
[1772472556983,0.47869813,2057.2,2056.4,1.21670498]
[1772472557290,0.47869813,2057.2,2056.4,0.001]
[1772472557667,0.46541702,2057.0,2056.4,0.001]
[1772472557973,0.46541702,2057.0,2056.1,0.001]
[1772472558174,0.46541702,2056.8,2056.1,0.001]
[1772472558379,0.46541702,2056.6,2056.1,0.001]
[1772472559792,2.320583,2056.7,2056.1,0.001]
[1772472559985,1.21550691,2056.8,2056.1,0.001]
[1772472560390,1.68092393,2056.8,2056.1,0.001]
[1772472560566,0.46541702,2056.7,2056.1,0.001]
[1772472561876,0.46541702,2056.5,2056.1,0.001]
[1772472562076,0.46541702,2056.5,2055.9,0.001]
[1772472562868,0.46541702,2056.2,2055.3,1.17956055]
[1772472563063,0.46541702,2056.0,2055.3,2.39590641]
[1772472563684,0.46541702,2056.0,2055.3,1.17956055]
[1772472563908,1.21601245,2055.9,2055.3,1.17956055]
[1772472564096,0.46541702,2055.8,2055.3,1.17956055]
[1772472564393,0.46541702,2055.8,2055.0,1.21652029]
[1772472564570,0.46541702,2055.8,2054.7,1.21672263]
[1772472566089,0.46541702,2055.6,2054.6,1.21678185]
[1772472568071,1.6816661,2055.5,2054.6,1.21678185]
[1772472569681,4.86444231,2055.8,2054.7,0.50964307]
[1772472570276,4.86444231,2055.8,2054.8,1.21666342]
[1772472570500,1.2160716,2055.8,2054.8,1.72630649]
[1772472571393,1.2160716,2055.8,2054.8,2.67730649]
[1772472573181,1.68148862,2055.8,2054.8,2.67730649]
[1772472573586,1.68148862,2055.8,2054.8,1.72630649]
[1772472576795,0.46541702,2055.7,2054.8,1.72630649]
[1772472578096,0.46541702,2055.7,2054.8,1.21666342]
[1772472578916,1.68160694,2055.6,2054.6,5.37632119]
[1772472579111,1.68160694,2055.6,2055.0,0.001]
[1772472582420,1.21618992,2055.6,2055.0,0.001]
[1772472582600,0.46541702,2055.5,2055.0,0.001]
[1772472583220,2.31818992,2055.6,2055.0,0.001]
[1772472583998,0.46541702,2055.5,2055.0,0.001]
[1772472584214,0.46541702,2055.5,2054.8,0.001]
[1772472584615,0.46541702,2055.4,2054.8,0.001]
[1772472585124,0.46541702,2055.4,2054.5,0.001]
[1772472585325,1.21654501,2055.0,2054.5,0.001]
[1772472585516,1.56841702,2054.9,2054.5,0.001]
[1772472586321,1.56841702,2054.9,2054.5,0.51064307]
[1772472586322,1.103,2054.9,2054.5,0.51064307]
[1772472587397,1.103,2054.9,2054.6,1.21678185]
[1772472587787,2.31960775,2054.9,2054.5,0.51064307]
[1772472588207,2.31960775,2054.9,2054.5,0.001]
[1772472588414,2.79305499,2054.9,2054.5,0.001]
[1772472589042,0.47344724,2054.8,2054.5,0.001]
[1772472589507,1.69016987,2054.7,2054.5,0.001]
[1772472591420,1.21672263,2054.7,2054.5,0.001]
[1772472592024,5.34033778,2054.8,2054.5,0.001]
[1772472592836,1.69011066,2054.8,2054.7,0.001]
[1772472593129,2.32160688,2054.9,2054.7,0.001]
[1772472593421,2.33161135,2054.9,2054.7,0.001]
[1772472593593,1.115,2054.9,2054.7,0.001]
[1772472596843,0.002,2056.4,2055.6,0.48443634]
[1772472597055,2.49376688,2056.4,2055.6,0.48443634]
[1772472597343,0.002,2056.6,2055.6,0.48443634]
[1772472597502,0.47544724,2056.6,2055.6,0.48443634]
[1772472597705,1.69108875,2056.6,2055.6,0.48443634]
[1772472597942,0.08764871,2056.5,2055.6,0.48443634]
[1772472598838,0.08764871,2056.5,2055.8,0.48443634]
[1772472599046,0.47344724,2056.0,2055.1,2.80398365]
[1772472599338,1.118,2055.9,2055.1,1.70088973]
[1772472599547,0.47344724,2055.8,2055.1,1.21645339]
[1772472599838,0.47344724,2055.7,2054.8,0.48443634]
[1772472600004,0.47344724,2055.7,2054.8,1.70109583]
[1772472601212,1.68959316,2055.7,2054.8,1.70109583]
[1772472601834,0.47344724,2055.7,2054.8,1.70109583]
[1772472602039,1.68958218,2055.7,2054.8,1.70109583]
[1772472602639,0.08764871,2055.6,2054.8,1.70109583]
[1772472603162,0.08764871,2055.6,2054.9,0.48443634]
[1772472604036,1.118,2055.9,2054.9,0.48443634]
[1772472604244,1.118,2055.9,2054.9,2.31954731]
[1772472604414,1.034,2056.4,2055.1,0.48443634]
[1772472604618,1.034,2056.4,2055.3,0.48443634]
[1772472605014,1.034,2056.4,2055.5,0.48443634]
[1772472605216,1.034,2056.4,2055.6,0.48443634]
[1772472605424,0.47344724,2056.3,2055.3,1.21632488]
[1772472605605,0.47344724,2056.0,2055.1,1.21648581]
[1772472606530,1.68916735,2056.4,2055.2,0.48443634]
[1772472606941,1.68916735,2056.4,2055.4,0.48443634]
[1772472607240,1.68916665,2056.4,2055.5,1.21624908]
[1772472607442,1.68916665,2056.4,2055.6,0.10840577]
[1772472608243,0.002,2055.9,2055.6,0.10840577]
[1772472609361,0.002,2055.9,2055.7,1.21613075]
[1772472611756,1.6891657,2056.4,2055.7,1.21613075]
[1772472611956,2.95995181,2056.6,2055.8,0.48443634]
[1772472611957,1.117,2056.6,2055.8,0.48443634]
[1772472612243,2.3326016,2056.6,2055.8,0.48443634]
[1772472612464,0.47344724,2056.5,2055.6,0.10840577]
[1772472612643,0.47344724,2056.1,2055.6,0.10840577]
[1772472612841,0.47344724,2056.1,2055.6,1.3245925]
[1772472613031,0.47344724,2056.5,2055.6,1.3245925]
[1772472613229,0.47344724,2056.5,2055.6,1.80902884]
[1772472613742,1.84295181,2056.3,2055.6,0.10840577]
[1772472613928,0.47344724,2056.2,2055.6,0.10840577]
[1772472614134,0.47344724,2056.2,2055.6,1.32457365]
[1772472615249,0.47344724,2056.4,2055.6,1.32457365]
[1772472615743,0.47344724,2056.2,2055.6,1.32457365]
[1772472616848,0.47344724,2056.2,2055.6,0.10840577]
[1772472617152,0.53306871,2056.0,2055.6,1.32459042]
[1772472617316,1.114,2056.1,2055.6,1.32459042]
[1772472619267,0.51501301,2056.5,2055.7,0.54353727]
[1772472619731,0.51501301,2056.5,2055.6,1.32459042]
[1772472619918,0.51501301,2056.2,2055.6,1.32459051]
[1772472620457,0.002,2055.9,2055.6,1.32459051]
[1772472621418,0.002,2055.9,2055.6,0.10840577]
[1772472621626,0.002,2055.9,2055.6,1.32458725]
[1772472622470,0.002,2055.9,2055.6,1.32457951]
[1772472625846,0.002,2056.1,2055.7,0.54353727]
[1772472626024,0.002,2056.4,2055.7,0.54353727]
[1772472626945,0.002,2056.4,2055.9,0.54353727]
[1772472627150,1.73275271,2056.4,2055.8,2.18103546]
[1772472627354,0.51501301,2056.3,2055.7,1.21610102]
[1772472629262,0.002,2056.4,2055.7,1.75963829]
[1772472629859,1.21772143,2056.4,2055.7,1.75963829]
[1772472630084,0.002,2056.4,2055.7,1.75963829]
[1772472630262,0.002,2056.4,2055.8,0.54353727]
[1772472631653,0.002,2056.4,2055.9,1.21601245]
[1772472631863,0.51701301,2056.4,2055.9,1.21601245]
[1772472632843,0.002,2056.4,2055.9,1.75954972]
[1772472633277,0.002,2056.2,2055.9,1.75954972]
[1772472635255,0.002,2056.2,2055.9,1.21601245]
[1772472636279,0.002,2056.6,2056.0,0.54353727]
[1772472636489,0.002,2056.6,2055.9,1.21601245]
[1772472636490,0.002,2056.6,2056.2,0.54353727]
[1772472637940,0.002,2056.6,2056.1,0.973]
[1772472638355,0.002,2056.6,2056.2,1.21583503]
[1772472638753,0.51701301,2056.6,2056.1,1.21584887]
[1772472639965,0.002,2056.6,2056.2,0.54353727]
[1772472640470,0.002,2056.6,2056.3,1.2157759]
[1772472642041,0.002,2056.6,2056.2,1.21579387]
[1772472642241,0.002,2056.6,2056.0,5.40729547]
[1772472643183,0.51501301,2056.2,2055.8,0.001]
[1772472643346,0.36000557,2056.1,2055.8,0.001]
[1772472643671,0.51501301,2056.2,2055.8,0.001]
[1772472643881,1.84295181,2056.1,2055.6,0.10840577]
[1772472644060,0.51501301,2055.9,2055.3,1.21735919]
[1772472644259,1.114,2056.3,2055.0,1.21649809]
[1772472644260,0.51501301,2055.7,2055.0,1.21649809]
[1772472645048,1.73120293,2055.6,2054.9,0.001]
[1772472645242,1.73120293,2055.6,2055.0,1.21654081]
[1772472645464,3.05906715,2055.8,2055.0,1.21654081]
[1772472645782,1.21584432,2056.2,2055.3,0.54353727]
[1772472645958,0.36010991,2056.1,2055.3,0.54353727]
[1772472646153,1.73085733,2056.2,2055.3,0.54353727]
[1772472646955,0.87478429,2056.1,2055.3,0.54353727]
[1772472647159,1.2159533,2056.0,2055.4,1.21630826]
[1772472647388,1.73094931,2056.1,2055.4,1.21630826]
[1772472647546,0.002,2056.0,2055.4,1.21630826]
[1772472649275,0.002,2056.0,2055.4,1.72961966]
[1772472650460,0.002,2056.0,2055.5,0.5133114]
[1772472651262,0.002,2056.0,2055.6,1.21618992]
[1772472653093,0.002,2056.0,2055.5,1.21620679]
[1772472653265,0.002,2056.0,2055.4,4.86511376]
[1772472653899,0.51750628,2056.0,2055.4,1.21630826]
[1772472654253,0.002,2056.0,2055.4,1.72961966]
[1772472657906,0.51750628,2056.0,2055.3,1.21731563]
[1772472658108,0.51550628,2055.9,2055.3,0.001]
[1772472660001,0.51550628,2055.7,2055.3,0.001]
[1772472660167,0.51550628,2055.7,2055.1,1.21747899]
[1772472660997,1.73152615,2055.9,2055.5,0.001]
[1772472661203,0.002,2055.8,2055.5,0.001]
[1772472661769,0.002,2055.8,2055.5,1.21724908]
[1772472663328,0.002,2056.2,2055.6,0.5133114]
[1772472663617,1.21766196,2056.5,2055.8,0.5133114]
[1772472663931,1.73316824,2056.5,2055.8,0.5133114]
[1772472664108,1.73316824,2056.5,2055.9,1.21601245]
[1772472664304,1.73316824,2056.5,2055.7,1.21609718]
[1772472664305,0.51550628,2056.3,2055.7,1.21609718]
[1772472664554,0.51550628,2056.3,2055.5,0.001]
[1772472664852,0.51550628,2055.8,2055.3,0.001]
[1772472665027,0.51550628,2055.7,2055.3,0.001]
[1772472665631,0.51550628,2055.7,2055.1,0.001]
[1772472665813,0.51550628,2055.5,2055.1,0.001]
[1772472666199,1.73181454,2055.4,2055.1,0.001]
[1772472666703,0.51550628,2055.3,2055.1,0.001]
[1772472667129,1.21630826,2055.4,2055.1,0.001]
[1772472668604,0.51550628,2055.3,2054.9,0.001]
[1772472671231,0.51550628,2055.2,2054.9,0.001]
[1772472671398,1.21640282,2055.3,2054.9,0.001]
[1772472671601,0.51550628,2055.2,2054.9,0.001]
[1772472671837,0.51550628,2055.2,2054.7,0.001]
[1772472672399,0.51550628,2055.2,2054.6,0.001]
[1772472674110,1.73199209,2055.1,2054.6,0.001]
[1772472674306,0.51550628,2054.9,2054.2,0.001]
[1772472674511,0.51550628,2054.6,2054.2,0.001]
[1772472674720,1.63350628,2054.6,2054.2,0.001]
[1772472674927,0.51550628,2054.5,2053.6,1.21919195]
[1772472675154,0.51550628,2054.5,2053.6,1.21734345]
[1772472675400,0.51550628,2054.5,2053.6,1.73065485]
[1772472675604,1.118,2054.6,2053.7,0.5133114]
[1772472677518,1.118,2054.6,2053.9,0.47287727]
[1772472677836,2.33478426,2054.6,2053.9,0.47287727]
[1772472678141,2.827948,2054.6,2053.8,1.21725581]
[1772472678635,2.827948,2054.6,2053.7,5.34190054]
[1772472678636,0.49316374,2054.5,2053.7,1.21731109]
[1772472678935,0.49316374,2054.5,2053.5,1.21739279]
[1772472678936,0.49316374,2054.4,2053.5,1.21739279]
[1772472679150,0.49316374,2054.4,2053.2,1.6904888]
[1772472679506,0.49316374,2054.2,2053.3,0.47287727]
[1772472679710,0.49316374,2054.2,2053.2,1.21761153]
[1772472679910,0.49316374,2054.0,2053.2,1.21761153]
[1772472680140,0.49316374,2054.0,2053.2,1.6904888]
[1772472680338,0.49316374,2054.0,2053.0,1.21773015]
[1772472680910,0.49316374,2053.8,2052.9,1.21774442]
[1772472681310,0.49316374,2053.8,2052.7,1.21790812]
[1772472681536,0.49316374,2053.6,2052.7,1.21790812]
[1772472681743,0.49316374,2053.4,2052.7,1.21790812]
[1772472682826,0.49316374,2053.4,2052.4,1.21808614]
[1772472683442,1.116,2053.3,2052.4,1.69096341]
[1772472683610,1.21761153,2053.2,2052.4,1.69096341]
[1772472683811,1.71077527,2053.2,2052.4,1.69096341]
[1772472684533,2.33355251,2053.3,2052.5,0.47287727]
[1772472684735,0.49316374,2053.2,2052.4,1.21808614]
[1772472684932,0.49316374,2053.2,2052.3,1.21811359]
[1772472685945,0.49316374,2053.0,2052.2,4.87266275]
[1772472686444,0.49316374,2053.0,2052.5,0.001]
[1772472687518,0.49316374,2053.0,2052.3,0.001]
[1772472688113,0.49316374,2052.8,2052.3,0.001]
[1772472688316,0.49316374,2052.7,2052.3,0.001]
[1772472688517,2.82686206,2053.1,2052.3,0.001]
[1772472689043,2.82686206,2053.1,2052.3,0.47387727]
[1772472689250,0.49316374,2053.1,2052.3,0.47387727]
[1772472690249,0.49316374,2052.9,2052.3,0.001]
[1772472690633,0.49316374,2052.9,2052.3,1.21914043]
[1772472692354,1.116,2053.3,2052.4,0.47287727]
[1772472692664,1.60916374,2053.3,2052.4,0.47287727]
[1772472693221,0.49316374,2053.1,2052.3,0.001]
[1772472693424,0.49316374,2053.1,2052.3,1.21914497]
[1772472694545,0.49316374,2053.0,2052.3,0.47387727]
[1772472694739,5.36376368,2053.2,2052.3,0.47387727]
[1772472696319,1.71077527,2053.2,2052.3,0.47387727]
[1772472696525,1.21761423,2053.2,2052.5,0.47287727]
[1772472696952,1.71077797,2053.2,2052.4,1.21808614]
[1772472697258,0.49316374,2053.1,2052.3,1.21909794]
[1772472697630,1.21761423,2053.2,2052.4,0.47287727]
[1772472697835,2.33359276,2053.3,2052.4,0.47287727]
[1772472698631,2.33356738,2053.3,2052.6,0.47287727]
[1772472699157,0.49316374,2053.9,2052.6,0.47287727]
[1772472699453,1.71036893,2053.9,2052.6,0.47287727]
[1772472699653,5.98357233,2054.0,2052.6,0.47287727]
[1772472699654,1.115,2054.0,2052.6,0.47287727]
[1772472700228,1.71221368,2054.2,2052.8,0.47287727]
[1772472700229,0.002,2054.2,2052.8,0.47287727]
[1772472700425,0.002,2053.5,2053.0,0.47287727]
[1772472700745,0.002,2054.2,2053.1,0.47287727]
[1772472701462,0.002,2054.2,2053.4,0.47287727]
[1772472701663,0.002,2054.2,2053.3,2.57763207]
[1772472701664,0.002,2054.2,2053.6,0.47287727]
[1772472702473,0.002,2054.2,2053.6,1.45387727]
[1772472702639,0.002,2054.2,2053.7,1.21731508]
[1772472703066,0.002,2054.2,2053.8,0.47287727]
[1772472703668,0.002,2054.4,2053.8,0.47287727]
[1772472703843,0.002,2054.7,2053.8,0.47287727]
[1772472704166,0.002,2054.7,2053.7,1.21731508]
[1772472704167,0.49316374,2055.7,2054.2,0.47287727]
[1772472704380,0.49316374,2055.6,2054.4,0.47287727]
[1772472704941,1.70936401,2055.6,2054.5,1.68971835]
[1772472705194,0.49316374,2055.6,2054.6,0.47287727]
[1772472706739,0.49316374,2055.6,2054.5,1.21684108]
[1772472706937,0.49316374,2055.4,2053.8,0.065536]
[1772472707250,0.49316374,2055.1,2054.0,0.47287727]
[1772472707440,1.31916374,2055.1,2054.0,0.47287727]
[1772472707844,0.49469943,2055.0,2053.9,1.21719655]
[1772472708050,0.49469943,2055.0,2053.8,1.21721767]
[1772472709170,1.71130364,2054.9,2053.7,0.48378284]
[1772472709578,0.49469943,2054.8,2053.7,0.48378284]
[1772472709953,1.21660421,2054.9,2053.7,0.48378284]
[1772472710977,1.71130364,2054.9,2053.7,0.48378284]
[1772472711185,1.71130364,2054.9,2053.8,1.21725581]
[1772472711186,0.49469943,2054.8,2053.8,1.21725581]
[1772472711470,0.49469943,2054.7,2053.9,0.5]
[1772472711790,0.49469943,2054.7,2053.8,1.21725581]
[1772472712852,0.49469943,2054.7,2054.0,0.001]
[1772472713378,1.21678185,2054.6,2054.0,0.001]
[1772472714076,1.21676438,2054.7,2054.0,0.001]
[1772472714263,1.21676438,2054.7,2054.0,0.48478284]
[1772472715659,0.002,2054.8,2054.0,0.48478284]
[1772472715858,0.49669943,2054.8,2054.0,0.001]
[1772472717152,1.60869943,2054.8,2054.0,1.21812659]
[1772472718071,1.21672263,2054.7,2054.0,0.001]
[1772472718462,0.49469943,2054.6,2054.0,0.001]
[1772472719478,1.21672263,2054.7,2054.0,0.48478284]
[1772472720204,1.21672263,2054.7,2054.1,1.21707803]
[1772472720373,2.33071167,2054.8,2054.1,1.70086087]
[1772472721451,1.21871167,2054.8,2054.1,1.70086087]
[1772472721802,0.002,2055.0,2054.4,0.48378284]
[1772472722270,0.002,2055.0,2054.5,1.21684108]
[1772472723487,0.002,2055.0,2054.6,0.48378284]
[1772472723688,0.002,2055.0,2054.3,5.32761712]
[1772472723859,0.002,2055.0,2054.3,1.21694735]
[1772472723860,0.49669943,2055.0,2054.3,1.21694735]
[1772472724049,0.49669943,2055.0,2054.3,1.70073019]
[1772472724050,0.002,2055.0,2054.3,1.70073019]
[1772472724246,0.002,2055.0,2054.4,0.48378284]
[1772472724678,5.002,2055.0,2054.4,0.48378284]
[1772472725867,0.002,2055.3,2054.9,0.48378284]
[1772472726087,0.002,2055.3,2055.0,1.46678284]
[1772472726378,0.002,2055.3,2054.8,0.48378284]
[1772472726797,0.002,2055.3,2054.8,1.46678284]
[1772472728070,0.002,2055.3,2054.8,0.48378284]
[1772472728576,0.002,2055.3,2054.9,1.21660421]
[1772472729195,5.35873109,2056.0,2055.0,0.48378284]
[1772472730688,5.35873109,2056.0,2055.2,0.48378284]
[1772472731083,0.49469943,2055.9,2055.1,1.70026865]
[1772472731260,0.49469943,2055.9,2055.1,2.68526865]
[1772472731464,0.49469943,2055.9,2055.1,1.70026865]
[1772472732493,1.71072593,2055.9,2055.1,1.70026865]
[1772472734191,1.71072593,2055.9,2055.2,0.48378284]
[1772472734486,1.2160265,2055.9,2055.2,0.48378284]
[1772472734800,5.35839689,2056.1,2055.3,1.21636744]
[1772472734999,1.71059359,2056.1,2055.3,1.70015028]
[1772472735164,1.71059359,2056.1,2055.4,0.48378284]
[1772472736497,1.111,2056.3,2055.4,0.48378284]
[1772472736702,2.32681772,2056.3,2055.5,1.72324951]
[1772472737270,0.48485354,2056.2,2055.5,1.72324951]
[1772472737721,0.48485354,2056.2,2055.3,1.21636744]
[1772472738007,0.002,2055.9,2055.3,1.21636744]
[1772472738668,0.002,2055.9,2055.3,0.49599407]
[1772472740129,0.002,2055.9,2055.4,0.984]
[1772472740428,0.002,2055.9,2055.5,0.49599407]
[1772472741015,0.002,2055.9,2055.6,1.21618992]
[1772472741330,0.002,2056.1,2055.7,0.49599407]
[1772472741898,0.002,2056.1,2055.9,0.49599407]
[1772472743002,0.002,2056.1,2056.0,1.2159533]
[1772472744142,0.002,2056.1,2055.9,1.21597064]
[1772472744341,0.002,2056.1,2055.7,1.21610406]
[1772472744342,0.48685354,2056.1,2055.7,1.21610406]
[1772472744496,0.002,2056.1,2055.7,1.21610406]
[1772472744833,0.002,2056.1,2055.7,1.71209813]
[1772472745134,0.002,2056.1,2055.9,1.21601245]
[1772472746636,0.002,2056.1,2055.8,1.21603184]
[1772472747009,0.002,2056.1,2055.5,4.86487499]
[1772472747304,0.48685354,2056.1,2055.7,1.21613075]
[1772472747520,0.002,2056.1,2055.7,1.21613075]
[1772472750536,0.002,2056.1,2055.3,0.49599407]
[1772472750737,0.48685354,2056.1,2055.1,1.21648581]
[1772472750935,0.48685354,2056.1,2055.2,0.998]
[1772472751240,0.48685354,2056.1,2055.5,0.001]
[1772472752135,0.48485354,2055.7,2055.3,0.001]
[1772472753843,0.48485354,2055.5,2055.3,0.001]
[1772472756338,1.7011618,2055.4,2055.3,0.001]
[1772472756911,0.48485354,2055.3,2055.0,0.001]
[1772472757144,0.48485354,2055.3,2054.4,0.997]
[1772472757724,0.48485354,2055.3,2054.7,0.5]
[1772472758144,0.48485354,2055.3,2054.8,1.21666342]
[1772472758351,1.70122262,2055.3,2054.8,1.21666342]
[1772472758638,0.48485354,2055.2,2054.7,0.5]
[1772472758821,0.48485354,2055.2,2054.5,1.7137923]
[1772472759138,0.48485354,2055.2,2054.5,0.001]
[1772472760011,0.48485354,2055.2,2054.5,1.21782814]
[1772472760213,1.70133869,2055.2,2054.5,1.71380199]
[1772472760609,0.48485354,2055.1,2054.5,0.001]
[1772472762242,1.70139855,2055.0,2054.5,0.001]
[1772472762544,0.48485354,2054.9,2054.3,0.001]
[1772472764137,0.48485354,2054.9,2054.7,0.001]
[1772472764436,0.48485354,2054.7,2054.0,0.001]
[1772472764748,1.59685354,2054.6,2054.5,0.001]
[1772472764949,0.48485354,2054.5,2054.0,0.001]
[1772472765271,0.48485354,2054.5,2054.2,0.001]
[1772472766447,1.2168467,2054.5,2054.2,0.001]
[1772472768340,0.48475837,2054.6,2054.2,0.001]
[1772472769036,1.2165781,2055.0,2054.2,0.50126188]
[1772472770120,1.2165781,2055.0,2054.2,1.49426188]
[1772472770532,1.2165781,2055.0,2054.4,0.50026188]
[1772472770533,2.4331624,2055.0,2054.4,0.50026188]
[1772472771521,2.91792077,2055.0,2054.3,1.21695954]
[1772472772063,0.48475837,2054.9,2054.2,0.001]
[1772472772556,2.43324152,2054.8,2054.2,0.50126188]
[1772472772731,2.91799989,2054.8,2054.2,0.50126188]
[1772472772926,1.70133647,2054.7,2054.2,0.001]
[1772472773855,1.2165781,2054.7,2054.2,0.001]
[1772472774044,1.70133647,2054.7,2054.2,0.001]
[1772472774438,2.91810395,2054.7,2054.2,0.001]
[1772472774622,1.21662758,2054.9,2054.2,0.50126188]
[1772472774822,1.2165781,2054.8,2054.2,0.50126188]
[1772472776057,1.2165781,2054.7,2054.2,0.50126188]
[1772472776766,1.2165781,2054.7,2054.3,1.21695954]
[1772472776968,1.2165781,2054.7,2054.4,0.001]
[1772472777740,2.43331084,2054.7,2054.4,0.001]
[1772472779565,2.43331084,2054.7,2054.2,1.2169805]
[1772472779870,2.43331084,2054.7,2054.3,0.45026188]
[1772472780737,1.2165781,2054.6,2054.4,1.21690031]
[1772472781083,1.70343185,2054.8,2054.1,1.71830902]
[1772472781437,0.48475837,2054.7,2054.1,0.001]
[1772472782951,1.70154022,2054.6,2054.1,0.001]
[1772472784148,6.70154022,2054.6,2054.1,0.001]
[1772472784674,0.48475837,2054.5,2054.1,0.001]
[1772472785576,1.21690031,2054.4,2054.1,0.001]
[1772472786576,1.70165868,2054.4,2054.1,0.001]
[1772472788446,1.70165868,2054.4,2053.4,0.993]
[1772472788447,0.48475837,2054.3,2053.4,0.993]
[1772472788649,0.48475837,2054.1,2053.6,0.001]
[1772472788872,0.48475837,2053.9,2053.3,0.001]
[1772472789848,1.21725581,2053.8,2053.3,0.001]
[1772472790049,0.48475837,2053.7,2053.3,0.001]
[1772472790252,1.21725581,2053.8,2053.3,0.001]
[1772472790452,1.70201418,2053.8,2053.3,0.001]
[1772472791474,0.48475837,2053.7,2053.3,0.001]
[1772472792274,1.21737436,2053.6,2053.3,0.001]
[1772472792680,0.48475837,2053.5,2053.3,0.001]
[1772472792884,0.48475837,2053.5,2052.6,1.21794206]
[1772472793055,0.48475837,2053.5,2052.7,0.001]
[1772472794349,0.48475837,2053.3,2052.7,0.001]
[1772472794799,1.21749293,2053.4,2052.7,0.001]
[1772472794800,0.48475837,2053.1,2052.7,0.001]
[1772472794964,0.48475837,2053.1,2052.5,0.001]
[1772472796286,1.21773015,2053.0,2052.5,0.001]
[1772472796486,1.70247605,2053.1,2052.5,0.001]
[1772472797085,0.52694273,2053.0,2052.5,0.001]
[1772472797968,1.21771768,2053.1,2052.5,0.48721158]
[1772472798466,6.49254319,2053.2,2052.6,1.21796745]
[1772472798467,0.49599793,2053.2,2052.6,1.21796745]
[1772472798786,1.21745024,2053.5,2052.7,0.48621158]
[1772472798972,4.86926529,2053.7,2052.7,0.48621158]
[1772472798973,0.49599793,2053.7,2052.7,0.48621158]
[1772472799188,1.21735712,2053.7,2052.8,0.48621158]
[1772472799389,0.49599793,2053.6,2052.8,0.48621158]
[1772472799795,0.49599793,2053.8,2052.8,0.48621158]
[1772472799959,1.21722809,2053.9,2053.1,0.48621158]
[1772472800371,0.49599793,2054.2,2053.3,0.48621158]
[1772472800598,0.49599793,2054.2,2053.2,0.991]
[1772472800599,1.21707803,2054.1,2053.4,1.70370451]
[1772472800803,1.71305897,2054.2,2053.5,0.48621158]
[1772472801094,1.2169948,2054.3,2053.5,0.48621158]
[1772472802482,0.49599793,2054.3,2053.5,0.48621158]
[1772472802829,0.49599793,2054.3,2053.1,0.48621158]
[1772472804287,0.49599793,2054.0,2053.0,1.21771949]
[1772472804603,1.71325374,2053.8,2053.0,1.21771949]
[1772472805171,1.71325374,2053.8,2052.9,2.69595301]
[1772472805510,0.49599793,2053.7,2052.9,2.69599694]
[1772472806015,0.49599793,2053.7,2052.9,1.21878815]
[1772472806595,5.3650212,2053.9,2053.1,1.21767083]
[1772472806989,5.3650212,2053.9,2053.0,1.70389718]
[1772472807191,0.49599793,2053.8,2053.0,1.70389718]
[1772472807415,0.49599793,2053.8,2053.0,0.48621158]
[1772472807717,0.49599793,2053.8,2052.9,1.21874337]
[1772472807922,0.49599793,2053.8,2052.9,0.001]
[1772472808124,0.49599793,2053.8,2052.9,1.21878315]
[1772472808490,0.49599793,2053.8,2052.9,0.001]
[1772472808791,1.71331301,2053.7,2052.9,0.001]
[1772472809636,1.71331301,2053.7,2052.9,0.48721158]
[1772472810741,1.71331301,2053.7,2053.0,0.48621158]
[1772472810899,1.71331301,2053.7,2052.9,0.001]
[1772472811106,0.49599793,2053.6,2052.9,0.001]
[1772472811791,1.21731508,2053.7,2052.9,0.001]
[1772472811792,0.49599793,2053.4,2052.9,0.001]
[1772472812689,1.21755223,2053.3,2052.9,0.001]
[1772472812895,1.71355016,2053.3,2052.9,0.001]
[1772472813110,1.21755223,2053.3,2052.9,0.001]
[1772472813332,1.21755223,2053.3,2052.9,0.48721158]
[1772472813492,1.21743364,2053.5,2052.9,0.48721158]
[1772472814756,1.71343157,2053.5,2052.9,0.001]
[1772472814904,4.86973459,2053.8,2052.9,0.001]
[1772472814905,0.49599793,2053.8,2052.9,0.001]
[1772472815110,0.49599793,2053.6,2052.9,0.001]
[1772472815416,0.49599793,2053.6,2052.6,0.001]